bitfinex-derivatives/quotes_BTCF0:USTF0_20241006
["timestamp","ask_amount","ask_price","bid_price","bid_amount"]
[1728227935074,0.3608,62646.0,62645.0,0.063855]
[1728227935269,0.3748,62646.0,62645.0,0.063855]
[1728227935470,0.3748,62646.0,62641.0,0.063858]
[1728227935674,0.17,62644.0,62641.0,0.063858]
[1728227936877,0.17,62644.0,62643.0,0.063857]
[1728227936878,0.171,62644.0,62643.0,0.063857]
[1728227938386,0.111,62644.0,62643.0,0.063857]
[1728227939477,0.11,62644.0,62643.0,0.063857]
[1728227940769,0.3608,62646.0,62638.0,0.11]
[1728227941078,0.3608,62646.0,62644.0,0.063855]
[1728227941275,0.11,62645.0,62644.0,0.063855]
[1728227943572,0.118,62645.0,62644.0,0.063855]
[1728227943973,0.128,62645.0,62644.0,0.063855]
[1728227948884,0.128,62645.0,62642.0,0.04758264]
[1728227949086,0.128,62645.0,62640.0,0.11144164]
[1728227949287,0.11,62641.0,62640.0,0.11144164]
[1728227949792,0.11,62641.0,62640.0,0.063859]
[1728227950488,0.11,62641.0,62640.0,0.1114517]
[1728227950690,0.11,62641.0,62640.0,0.0475927]
[1728227950987,1.21976387,62641.0,62634.0,0.00239476]
[1728227951188,0.063867,62633.0,62631.0,0.04759668]
[1728227951492,0.063867,62633.0,62628.0,0.04759668]
[1728227951493,0.11,62632.0,62628.0,0.04759668]
[1728227951686,0.11,62629.0,62627.0,0.04759668]
[1728227952075,0.11,62629.0,62627.0,0.11146868]
[1728227952280,0.11,62629.0,62628.0,0.063872]
[1728227952903,0.111,62629.0,62628.0,0.063872]
[1728227953186,0.111,62629.0,62626.0,0.04759668]
[1728227953392,0.4718,62629.0,62625.0,0.04759668]
[1728227953578,0.11,62626.0,62624.0,0.20587268]
[1728227953779,0.11,62626.0,62625.0,0.063875]
[1728227954180,0.11,62628.0,62627.0,0.063873]
[1728227955588,0.3618,62629.0,62627.0,0.063873]
[1728227955887,0.3618,62629.0,62626.0,0.11]
[1728227955888,0.3618,62629.0,62628.0,0.063872]
[1728227956882,0.3618,62629.0,62628.0,0.173872]
[1728227957177,0.0037,62638.0,62628.0,1.613672]
[1728227957379,0.205148,62652.0,62637.0,0.11]
[1728227957583,0.02110346,62642.0,62641.0,0.11]
[1728227957781,0.00239528,62642.0,62641.0,0.173859]
[1728227959592,0.00339528,62642.0,62641.0,0.173859]
[1728227959988,0.00439528,62642.0,62641.0,0.063859]
[1728227960184,0.00339528,62642.0,62641.0,0.063859]
[1728227963295,0.00339528,62642.0,62641.0,1.142779]
[1728227963296,0.001,62642.0,62641.0,1.142779]
[1728227963491,0.11,62655.0,62650.0,0.063849]
[1728227963692,0.37930563,62653.0,62651.0,0.173848]
[1728227963886,0.37930563,62653.0,62652.0,0.063847]
[1728227964798,0.39330563,62653.0,62652.0,0.063847]
[1728227965398,0.40730563,62653.0,62652.0,0.063847]
[1728227966992,0.39330563,62653.0,62652.0,0.063847]
[1728227967302,0.40730563,62653.0,62652.0,0.063847]
[1728227968593,0.04650563,62653.0,62652.0,0.063847]
[1728227969100,0.04650563,62653.0,62652.0,0.158847]
[1728227970712,0.21650563,62653.0,62652.0,0.063847]
[1728227971001,0.04650563,62653.0,62652.0,0.063847]
[1728227973097,0.40730563,62653.0,62652.0,0.063847]
[1728227978315,0.57730563,62653.0,62652.0,0.063847]
[1728227988507,0.51730563,62653.0,62652.0,0.063847]
[1728227998516,0.51730563,62653.0,62649.0,0.04748922]
[1728227998825,0.11,62650.0,62649.0,0.04748922]
[1728228000309,0.11,62650.0,62645.0,0.04755307]
[1728228000310,0.4708,62650.0,62645.0,0.04755307]
[1728228000512,0.4708,62650.0,62640.0,0.0111]
[1728228000513,0.11,62644.0,62640.0,0.0111]
[1728228000813,0.3748,62650.0,62638.0,0.00239435]
[1728228000814,0.11,62641.0,62638.0,0.06625535]
[1728228001927,0.11,62641.0,62638.0,0.00239435]
[1728228002425,0.38964,62650.0,62640.0,0.11]
[1728228002726,0.11,62646.0,62645.0,0.063854]
[1728228005216,0.124,62646.0,62645.0,0.063854]
[1728228005611,0.138,62646.0,62645.0,0.063854]
[1728228006912,0.15668837,62646.0,62645.0,0.063854]
[1728228008721,0.15668837,62646.0,62638.0,0.00609435]
[1728228008938,0.11,62641.0,62640.0,0.063859]
[1728228011427,0.111,62641.0,62640.0,0.063859]
[1728228011613,0.111,62641.0,62638.0,0.00239435]
[1728228011614,0.06386,62640.0,62638.0,0.00239435]
[1728228011817,0.11,62639.0,62638.0,0.00239435]
[1728228013335,0.111,62639.0,62638.0,0.00239435]
[1728228013521,0.111,62639.0,62638.0,0.06625635]
[1728228014730,0.111,62639.0,62638.0,0.00239435]
[1728228016029,0.175861,62639.0,62638.0,0.00239435]
[1728228016227,0.55480143,62639.0,62638.0,0.00239435]
[1728228017023,0.063867,62633.0,62632.0,0.0037]
[1728228017232,0.06387,62630.0,62625.0,0.067575]
[1728228017428,0.11,62626.0,62625.0,0.063875]
[1728228018330,0.11,62626.0,62621.0,0.063879]
[1728228018630,0.11,62622.0,62621.0,0.063879]
[1728228019925,0.111,62622.0,62621.0,0.063879]
[1728228020325,0.112,62622.0,62621.0,0.063879]
[1728228020536,0.172,62622.0,62621.0,0.063879]
[1728228022835,0.002,62622.0,62621.0,0.063879]
[1728228023220,0.02079249,62622.0,62621.0,0.063879]
[1728228023426,0.002,62622.0,62621.0,0.063879]
[1728228028537,0.002,62622.0,62617.0,0.00239528]
[1728228028730,0.17,62618.0,62617.0,0.06627828]
[1728228028930,0.17,62618.0,62617.0,0.00239528]
[1728228030027,0.171,62618.0,62617.0,0.00239528]
[1728228030434,0.5318,62618.0,62617.0,0.00239528]
[1728228030635,0.596682,62618.0,62617.0,0.00239528]
[1728228031137,1.61188,62618.0,62610.0,0.0037]
[1728228031342,0.233888,62613.0,62607.0,0.0037]
[1728228031526,0.3628,62618.0,62606.0,0.063894]
[1728228031527,0.17,62609.0,62606.0,0.063894]
[1728228033445,0.172,62609.0,62606.0,0.063894]
[1728228035938,0.063896,62604.0,62602.0,0.0037]
[1728228036142,0.063896,62604.0,62601.0,0.3608]
[1728228036143,0.17,62603.0,62601.0,0.3608]
[1728228037035,0.233898,62603.0,62599.0,0.00239641]
[1728228037746,0.234898,62603.0,62599.0,0.00239641]
[1728228037953,0.235898,62603.0,62599.0,0.00239641]
[1728228038743,0.063899,62602.0,62599.0,0.00239641]
[1728228039043,0.0639,62601.0,62599.0,0.00239641]
[1728228039250,0.0951,62601.0,62599.0,0.00239641]
[1728228039835,0.0312,62601.0,62599.0,0.00239641]
[1728228040042,0.0639,62600.0,62599.0,0.00239641]
[1728228040554,0.0639,62600.0,62593.0,0.063907]
[1728228040737,0.17,62594.0,62593.0,0.063907]
[1728228041853,0.17,62594.0,62589.0,0.0622]
[1728228042145,0.17,62590.0,62589.0,0.126112]
[1728228043548,0.171,62590.0,62589.0,0.126112]
[1728228044144,0.172,62590.0,62589.0,0.126112]
[1728228045847,0.1906523,62590.0,62589.0,0.126112]
[1728228048641,0.002,62590.0,62589.0,0.126112]
[1728228048954,0.1737,62600.0,62589.0,0.296112]
[1728228049142,0.17,62596.0,62589.0,0.126112]
[1728228049336,0.063903,62598.0,62589.0,0.0622]
[1728228049546,0.17,62590.0,62589.0,0.0659]
[1728228049758,0.17,62590.0,62589.0,0.0622]
[1728228050255,0.17,62594.0,62589.0,0.0622]
[1728228050453,0.17,62594.0,62593.0,0.063908]
[1728228051557,0.17,62594.0,62589.0,0.0622]
[1728228051742,0.17,62590.0,62589.0,0.063911]
[1728228053543,0.171,62590.0,62589.0,0.063911]
[1728228053740,0.172,62590.0,62589.0,0.063911]
[1728228057758,1.25132,62590.0,62582.0,0.0037]
[1728228057958,0.233918,62583.0,62579.0,0.0037]
[1728228058148,0.233918,62583.0,62578.0,0.063922]
[1728228058149,0.17,62580.0,62578.0,0.063922]
[1728228059259,0.233921,62580.0,62574.0,0.3608]
[1728228059464,0.0303,62582.0,62572.0,0.0037]
[1728228059465,0.17,62575.0,62572.0,0.0037]
[1728228059650,0.17,62575.0,62569.0,0.067632]
[1728228059854,0.17,62571.0,62569.0,0.063932]
[1728228062159,0.17,62571.0,62570.0,0.063931]
[1728228062360,0.171,62571.0,62570.0,0.063931]
[1728228063248,0.172,62571.0,62570.0,0.063931]
[1728228064661,0.1900217,62571.0,62570.0,0.063931]
[1728228065181,0.002,62571.0,62570.0,0.233931]
[1728228065365,0.3645,62579.0,62578.0,0.063923]
[1728228065567,0.37879548,62579.0,62578.0,0.063923]
[1728228066359,0.3608,62579.0,62578.0,0.063923]
[1728228066665,0.3618,62579.0,62578.0,0.063923]
[1728228066860,0.3628,62579.0,62578.0,0.063923]
[1728228067164,0.002,62579.0,62578.0,0.424723]
[1728228071265,0.002,62579.0,62578.0,0.063923]
[1728228071455,0.172,62579.0,62578.0,0.063923]
[1728228071862,0.002,62579.0,62578.0,0.063923]
[1728228072570,0.172,62579.0,62578.0,0.063923]
[1728228074765,0.002,62579.0,62578.0,0.063923]
[1728228077264,0.002,62579.0,62578.0,0.233923]
[1728228077464,0.0037,62589.0,62588.0,0.063913]
[1728228077670,0.5316,62590.0,62589.0,0.063912]
[1728228077974,0.06392,62581.0,62580.0,0.0037]
[1728228078165,0.063925,62576.0,62573.0,0.00124]
[1728228078365,0.17,62574.0,62572.0,0.3608]
[1728228078563,0.17,62574.0,62573.0,0.063928]
[1728228078964,0.17,62574.0,62572.0,0.3608]
[1728228079463,0.17,62574.0,62571.0,0.0148]
[1728228079659,0.063929,62572.0,62571.0,0.0148]
[1728228080963,0.064929,62572.0,62571.0,0.0148]
[1728228082273,0.065929,62572.0,62571.0,0.0158]
[1728228082473,0.3628,62572.0,62564.0,0.0043]
[1728228082660,0.3628,62572.0,62558.0,0.068243]
[1728228082661,0.17,62566.0,62559.0,0.063942]
[1728228083187,0.2338,62566.0,62559.0,0.063942]
[1728228083370,0.5946,62566.0,62559.0,0.063942]
[1728228084069,0.5946,62566.0,62560.0,0.063941]
[1728228085170,0.61415338,62566.0,62560.0,0.063941]
[1728228085775,0.61515338,62566.0,62560.0,0.063941]
[1728228086266,0.17,62561.0,62560.0,0.063941]
[1728228087573,0.17,62561.0,62553.0,0.063948]
[1728228087778,0.44595338,62566.0,62553.0,0.063948]
[1728228087779,0.17,62554.0,62553.0,0.063948]
[1728228089276,0.171,62554.0,62549.0,0.063953]
[1728228089465,0.17,62550.0,62549.0,0.063953]
[1728228090770,0.171,62550.0,62549.0,0.063953]
[1728228091174,0.001,62550.0,62549.0,0.063953]
[1728228091665,0.002,62550.0,62549.0,0.063953]
[1728228094069,0.17,62553.0,62552.0,0.063949]
[1728228095382,0.172,62553.0,62552.0,0.063949]
[1728228095683,0.002,62553.0,62552.0,0.063949]
[1728228095974,0.002,62553.0,62552.0,0.543549]
[1728228096883,0.002,62553.0,62552.0,0.063949]
[1728228097081,0.002,62553.0,62552.0,0.543549]
[1728228097970,0.002,62553.0,62552.0,0.063949]
[1728228098175,0.002,62553.0,62552.0,0.543549]
[1728228098583,0.17,62565.0,62553.0,0.063948]
[1728228098775,0.17,62564.0,62563.0,0.063938]
[1728228099978,0.01973049,62565.0,62556.0,0.0323]
[1728228100181,0.01973049,62565.0,62564.0,0.063937]
[1728228101278,0.02073049,62565.0,62564.0,0.063937]
[1728228101479,0.01973049,62565.0,62564.0,0.063937]
[1728228102375,0.18973049,62565.0,62564.0,0.063937]
[1728228102880,0.19073049,62565.0,62564.0,0.065937]
[1728228103574,0.02073049,62565.0,62564.0,0.065937]
[1728228105576,0.19073049,62565.0,62564.0,0.065937]
[1728228109890,0.19073049,62565.0,62564.0,0.002]
[1728228112289,0.19073049,62565.0,62564.0,0.065937]
[1728228112693,0.02073049,62565.0,62564.0,0.065937]
[1728228114793,0.02073049,62565.0,62564.0,0.11352573]
[1728228115294,0.02073049,62565.0,62564.0,0.065937]
[1728228115485,0.02073049,62565.0,62564.0,0.12938052]
[1728228115886,0.002,62565.0,62564.0,0.60890052]
[1728228116089,0.002,62565.0,62564.0,0.545457]
[1728228116394,0.37965956,62575.0,62564.0,1.145457]
[1728228116600,0.38045956,62575.0,62574.0,0.063927]
[1728228116907,0.37965956,62575.0,62574.0,0.063927]
[1728228118590,0.38965956,62575.0,62574.0,0.063927]
[1728228119296,0.39765956,62575.0,62574.0,0.063927]
[1728228119700,0.40561901,62575.0,62567.0,0.0037]
[1728228119996,0.40561901,62575.0,62564.0,0.0111]
[1728228119997,0.063935,62566.0,62564.0,0.0037]
[1728228120203,0.0323,62565.0,62558.0,0.0037]
[1728228120407,0.17,62563.0,62562.0,0.063939]
[1728228120585,0.17,62563.0,62555.0,0.0037]
[1728228120586,0.1737,62572.0,62558.0,0.21772596]
[1728228120792,0.17,62568.0,62567.0,0.063934]
[1728228121685,0.17,62572.0,62563.0,0.0037]
[1728228121891,0.17,62572.0,62562.0,0.21772596]
[1728228121892,0.001,62572.0,62562.0,0.21772596]
[1728228122104,0.001,62572.0,62571.0,0.06393]
[1728228122404,0.171,62572.0,62571.0,0.06393]
[1728228122591,0.17,62572.0,62571.0,0.06393]
[1728228122792,0.171,62572.0,62571.0,0.06393]
[1728228123498,0.17,62572.0,62571.0,0.06393]
[1728228123695,0.171,62572.0,62571.0,0.06593]
[1728228124489,0.172,62572.0,62571.0,0.06593]
[1728228125100,0.171,62572.0,62571.0,0.06593]
[1728228125702,0.001,62572.0,62571.0,0.06593]
[1728228126285,0.001,62572.0,62571.0,0.11365596]
[1728228128101,0.001,62572.0,62571.0,0.06593]
[1728228128398,0.001,62572.0,62571.0,1.14537]
[1728228129793,0.001,62572.0,62571.0,0.06593]
[1728228134201,0.001,62572.0,62571.0,0.11362187]
[1728228135103,0.001,62572.0,62571.0,0.06593]
[1728228140107,0.001,62572.0,62571.0,0.12956461]
[1728228140508,0.001,62572.0,62571.0,0.06593]
[1728228141102,0.001,62572.0,62571.0,0.12956461]
[1728228142211,0.001,62572.0,62571.0,0.06593]
[1728228146909,0.001,62572.0,62571.0,0.11372386]
[1728228150513,0.001,62572.0,62571.0,0.12959112]
[1728228150911,0.001,62572.0,62571.0,0.06593]
[1728228151216,0.001,62572.0,62571.0,0.12959112]
[1728228151514,0.001,62572.0,62571.0,0.06593]
[1728228152517,0.111,62572.0,62571.0,0.12967936]
[1728228152701,0.239629,62572.0,62571.0,0.002]
[1728228153123,0.719069,62572.0,62571.0,0.002]
[1728228154412,0.779069,62572.0,62571.0,0.002]
[1728228154605,0.299629,62572.0,62571.0,0.002]
[1728228155239,0.660429,62572.0,62571.0,0.002]
[1728228156123,0.5965,62572.0,62571.0,0.002]
[1728228156314,0.3618,62572.0,62571.0,0.002]
[1728228156620,0.001,62572.0,62571.0,0.11374806]
[1728228156822,0.001,62572.0,62571.0,0.12967936]
[1728228158313,0.001,62572.0,62571.0,0.06593]
[1728228160321,0.001,62572.0,62571.0,0.1296208]
[1728228160527,0.0312,62587.0,62580.0,0.063921]
[1728228160712,0.17,62586.0,62585.0,0.063916]
[1728228161807,0.184,62586.0,62585.0,0.063916]
[1728228163718,0.028,62586.0,62585.0,0.063916]
[1728228166824,0.198,62586.0,62585.0,0.063916]
[1728228174434,0.138,62586.0,62585.0,0.063916]
[1728228176324,0.028,62586.0,62585.0,0.063916]
[1728228178633,0.138,62586.0,62585.0,0.063916]
[1728228185026,0.138,62586.0,62580.0,0.0306]
[1728228185226,0.11,62581.0,62580.0,0.063921]
[1728228186426,0.124,62581.0,62580.0,0.063921]
[1728228188434,0.138,62581.0,62580.0,0.063921]
[1728228193830,0.028,62581.0,62580.0,0.063921]
[1728228195740,0.028,62581.0,62580.0,0.173921]
[1728228196631,0.028,62581.0,62580.0,0.653321]
[1728228196933,0.01864157,62587.0,62586.0,0.063915]
[1728228197237,0.36319711,62594.0,62593.0,0.063908]
[1728228197433,0.38189377,62594.0,62593.0,0.063908]
[1728228198950,0.40989377,62594.0,62593.0,0.063908]
[1728228200044,0.04909377,62594.0,62593.0,0.063908]
[1728228200234,0.03039711,62594.0,62593.0,0.063908]
[1728228201345,0.03202696,62594.0,62593.0,0.064908]
[1728228201838,0.04602696,62594.0,62593.0,0.065908]
[1728228202535,0.04602696,62594.0,62593.0,0.11358884]
[1728228202937,0.04602696,62594.0,62593.0,0.065908]
[1728228203943,0.028,62594.0,62593.0,0.065908]
[1728228204833,0.028,62594.0,62593.0,1.145188]
[1728228205033,0.0037,62603.0,62593.0,1.505988]
[1728228205249,0.00239643,62607.0,62606.0,0.063894]
[1728228205250,0.00609643,62607.0,62606.0,0.063894]
[1728228205445,0.00239643,62607.0,62606.0,0.063894]
[1728228205644,0.0204649,62607.0,62606.0,0.063894]
[1728228207850,0.0314649,62607.0,62606.0,0.064894]
[1728228208251,0.0314649,62607.0,62606.0,0.001]
[1728228208252,0.5661579,62607.0,62606.0,0.001]
[1728228208455,0.6261579,62607.0,62606.0,0.001]
[1728228208654,0.6261579,62607.0,62606.0,0.002]
[1728228208946,0.6586579,62607.0,62606.0,0.002]
[1728228218449,0.4247649,62607.0,62606.0,0.002]
[1728228219149,0.3922649,62607.0,62606.0,0.065894]
[1728228222861,0.3922649,62607.0,62606.0,0.002]
[1728228223153,0.6151579,62607.0,62606.0,0.001]
[1728228223365,0.6261579,62607.0,62606.0,0.002]
[1728228224161,0.6201579,62607.0,62606.0,0.001]
[1728228225853,0.6241579,62607.0,62606.0,0.002]
[1728228226658,0.3902649,62607.0,62606.0,0.002]
[1728228226858,0.3902649,62607.0,62606.0,0.065894]
[1728228230061,0.5602649,62607.0,62606.0,0.065894]
[1728228230449,0.53112459,62607.0,62606.0,0.065894]
[1728228230655,0.5002649,62607.0,62606.0,0.002]
[1728228230856,0.53112456,62607.0,62606.0,0.002]
[1728228231057,0.5002649,62607.0,62606.0,0.002]
[1728228231465,0.53112451,62607.0,62606.0,0.002]
[1728228231966,0.53112443,62607.0,62606.0,0.002]
[1728228232567,0.59501743,62607.0,62606.0,0.002]
[1728228232753,0.59501776,62607.0,62606.0,0.002]
[1728228235069,0.23421776,62607.0,62606.0,0.002]
[1728228235373,0.59501776,62607.0,62606.0,0.002]
[1728228241769,0.5641579,62607.0,62606.0,0.002]
[1728228244382,0.4541579,62607.0,62606.0,0.002]
[1728228244681,0.0294649,62607.0,62606.0,0.065894]
[1728228245067,0.0294649,62607.0,62606.0,0.605594]
[1728228245068,0.01139643,62607.0,62606.0,0.605594]
[1728228245281,0.01139643,62607.0,62606.0,1.205594]
[1728228245862,0.0313,62623.0,62615.0,0.063885]
[1728228246063,0.1137,62625.0,62620.0,0.06388]
[1728228246266,0.11,62625.0,62620.0,0.06388]
[1728228246972,0.11,62625.0,62620.0,0.09428]
[1728228247273,0.37925621,62621.0,62620.0,0.09428]
[1728228247671,0.37925621,62621.0,62620.0,0.09528]
[1728228249382,0.01845621,62621.0,62620.0,0.09628]
[1728228249683,0.11,62622.0,62620.0,0.09628]
[1728228250265,0.12863078,62622.0,62620.0,0.09628]
[1728228252379,0.01863078,62622.0,62620.0,0.09628]
[1728228252582,0.173875,62625.0,62621.0,0.063879]
[1728228252787,0.11,62622.0,62620.0,0.0324]
[1728228253997,0.11,62622.0,62621.0,0.001]
[1728228254684,0.173878,62622.0,62621.0,0.001]
[1728228255777,0.174878,62622.0,62620.0,0.0324]
[1728228256478,0.535678,62622.0,62621.0,0.001]
[1728228256683,0.535678,62622.0,62621.0,0.002]
[1728228257491,0.535678,62622.0,62621.0,0.001]
[1728228257786,0.535678,62622.0,62620.0,0.0324]
[1728228259078,0.535678,62622.0,62620.0,0.001]
[1728228259079,0.534678,62622.0,62620.0,0.001]
[1728228259278,0.534678,62622.0,62621.0,0.001]
[1728228259279,0.535678,62622.0,62621.0,0.001]
[1728228259585,0.535678,62622.0,62621.0,0.002]
[1728228259988,0.535678,62622.0,62620.0,0.002]
[1728228260685,0.535678,62622.0,62617.0,0.063883]
[1728228260686,0.534678,62622.0,62621.0,0.001]
[1728228260984,0.535678,62622.0,62621.0,0.002]
[1728228261184,0.535678,62622.0,62621.0,0.001]
[1728228261386,0.174878,62622.0,62621.0,0.001]
[1728228261679,0.535678,62622.0,62621.0,0.001]
[1728228262475,0.535678,62622.0,62620.0,0.002]
[1728228262689,0.535678,62622.0,62620.0,0.001]
[1728228262883,0.535678,62622.0,62621.0,0.001]
[1728228263388,0.535678,62622.0,62621.0,0.002]
[1728228263783,0.535678,62622.0,62621.0,0.001]
[1728228264583,0.535678,62622.0,62621.0,0.002]
[1728228266491,0.4718,62622.0,62621.0,0.002]
[1728228266696,0.3618,62622.0,62621.0,0.002]
[1728228268388,0.001,62622.0,62621.0,0.002]
[1728228268594,0.3618,62622.0,62621.0,0.002]
[1728228270693,0.4718,62622.0,62621.0,0.002]
[1728228274289,0.50265155,62622.0,62621.0,0.002]
[1728228275592,0.4718,62622.0,62621.0,0.002]
[1728228280299,0.5026517,62622.0,62621.0,0.002]
[1728228281393,0.4718,62622.0,62621.0,0.002]
[1728228284092,0.063885,62615.0,62614.0,0.0037]
[1728228284298,0.063885,62615.0,62608.0,0.063892]
[1728228284299,0.20473776,62615.0,62608.0,0.063892]
[1728228284495,0.06215276,62614.0,62608.0,0.063892]
[1728228284692,0.11,62612.0,62608.0,0.063892]
[1728228285502,0.03085522,62611.0,62608.0,0.063892]
[1728228285705,0.03085522,62610.0,62608.0,0.063892]
[1728228285892,0.11,62612.0,62609.0,0.063891]
[1728228286096,0.03085522,62611.0,62609.0,0.063891]
[1728228286301,0.111,62612.0,62609.0,0.063891]
[1728228286504,0.03085518,62611.0,62608.0,0.001]
[1728228286702,0.001,62612.0,62611.0,0.063889]
[1728228286899,0.0342,62621.0,62616.0,0.063884]
[1728228287101,0.06996853,62619.0,62617.0,0.063883]
[1728228287297,0.03085389,62618.0,62617.0,0.063883]
[1728228288201,0.03085389,62618.0,62617.0,0.064883]
[1728228289505,0.12842286,62620.0,62618.0,0.063882]
[1728228289704,0.03085269,62619.0,62618.0,0.063882]
[1728228290299,0.03085269,62619.0,62618.0,0.173882]
[1728228290609,0.03085176,62619.0,62618.0,0.173882]
[1728228290812,0.3608,62622.0,62618.0,0.11]
[1728228291013,0.03085146,62621.0,62619.0,0.063881]
[1728228291209,0.03085146,62620.0,62619.0,0.063881]
[1728228292112,0.03285146,62620.0,62619.0,0.064881]
[1728228292499,0.002,62620.0,62619.0,0.064881]
[1728228292911,0.38016046,62622.0,62619.0,0.064881]
[1728228293212,0.002,62620.0,62619.0,0.065881]
[1728228295211,0.38212046,62622.0,62619.0,0.065881]
[1728228295417,0.38132046,62622.0,62619.0,0.065881]
[1728228296119,0.002,62620.0,62619.0,0.065881]
[1728228298408,0.38212046,62622.0,62619.0,0.065881]
[1728228298611,0.38132046,62622.0,62619.0,0.065881]
[1728228299209,0.002,62620.0,62619.0,0.065881]
[1728228301013,0.38012046,62622.0,62619.0,0.001]
[1728228301214,0.38132046,62622.0,62621.0,0.173879]
[1728228301811,0.37932046,62622.0,62621.0,0.173879]
[1728228302014,0.37932046,62622.0,62619.0,0.002]
[1728228302220,0.11,62620.0,62619.0,0.002]
[1728228302609,0.11,62620.0,62619.0,0.001]
[1728228302916,0.11,62620.0,62617.0,0.063882]
[1728228303311,0.11,62620.0,62619.0,0.001]
[1728228304522,0.112,62620.0,62619.0,0.002]
[1728228304925,0.112,62620.0,62619.0,0.001]
[1728228305125,0.112,62620.0,62619.0,0.002]
[1728228307729,0.14285159,62620.0,62619.0,0.002]
[1728228311523,0.20673159,62620.0,62619.0,0.002]
[1728228311833,0.14285159,62620.0,62611.0,0.0037]
[1728228312125,0.11,62614.0,62613.0,0.063887]
[1728228314020,0.12855628,62614.0,62613.0,0.063887]
[1728228314432,0.12855628,62614.0,62611.0,0.001]
[1728228314730,0.03085467,62613.0,62611.0,0.002]
[1728228314928,0.12855628,62614.0,62613.0,0.001]
[1728228315126,0.15941152,62614.0,62613.0,0.001]
[1728228315524,0.15941152,62614.0,62613.0,0.002]
[1728228315525,0.22729752,62614.0,62613.0,0.002]
[1728228315829,0.19644228,62614.0,62613.0,0.002]
[1728228316031,0.19644228,62614.0,62613.0,0.001]
[1728228318033,0.19644228,62614.0,62613.0,0.002]
[1728228319332,0.55724228,62614.0,62613.0,0.002]
[1728228319634,1.18809962,62614.0,62613.0,0.002]
[1728228319825,0.063894,62606.0,62605.0,0.0037]
[1728228320135,0.173894,62606.0,62598.0,0.067602]
[1728228320430,0.173894,62606.0,62598.0,0.063902]
[1728228320431,0.11,62599.0,62598.0,0.063902]
[1728228321928,0.11,62599.0,62598.0,0.073902]
[1728228322131,0.11,62601.0,62599.0,0.063901]
[1728228322327,0.11,62601.0,62600.0,0.0639]
[1728228322527,0.095595,62605.0,62602.0,0.063898]
[1728228322734,0.11,62604.0,62602.0,0.063898]
[1728228323930,0.11,62604.0,62603.0,0.063897]
[1728228325241,0.11,62604.0,62603.0,0.068897]
[1728228325437,0.11,62604.0,62603.0,0.073897]
[1728228330245,0.11,62605.0,62603.0,0.073897]
[1728228330840,0.11,62605.0,62603.0,0.01]
[1728228331041,0.173895,62605.0,62603.0,0.01]
[1728228331556,0.177895,62605.0,62603.0,0.005]
[1728228331734,0.177895,62605.0,62599.0,0.063901]
[1728228331933,0.11,62600.0,62599.0,0.063901]
[1728228332348,0.067895,62605.0,62595.0,0.0314]
[1728228332543,0.11,62602.0,62595.0,0.0314]
[1728228332737,0.11,62602.0,62596.0,0.063905]
[1728228332944,0.11,62602.0,62600.0,0.0639]
[1728228333134,0.11,62602.0,62595.0,0.0314]
[1728228333333,0.11,62602.0,62601.0,0.063899]
[1728228334949,0.11,62602.0,62601.0,0.070899]
[1728228335248,0.11,62602.0,62601.0,0.077899]
[1728228335447,0.11,62602.0,62601.0,0.014]
[1728228335748,0.173898,62602.0,62601.0,0.014]
[1728228336647,0.11,62602.0,62601.0,0.014]
[1728228339448,0.19210776,62602.0,62601.0,0.014]
[1728228340152,0.22296893,62602.0,62601.0,0.014]
[1728228340356,1.66300893,62602.0,62601.0,0.014]
[1728228342547,1.63214776,62602.0,62601.0,0.014]
[1728228344351,1.42381193,62602.0,62591.0,0.0111]
[1728228344651,0.11,62592.0,62590.0,0.00239615]
[1728228344840,0.06391,62591.0,62590.0,0.00239615]
[1728228345040,0.12621,62591.0,62590.0,0.00239615]
[1728228346145,0.7224,62602.0,62590.0,0.00239615]
[1728228346348,0.06316667,62601.0,62592.0,0.063908]
[1728228346550,0.063902,62599.0,62592.0,0.063908]
[1728228346941,0.063902,62599.0,62595.0,0.063905]
[1728228347343,0.11,62596.0,62595.0,0.063905]
[1728228348143,0.11,62596.0,62595.0,0.086905]
[1728228348961,0.4718,62596.0,62595.0,0.086905]
[1728228349543,0.4718,62596.0,62595.0,0.023]
[1728228349958,0.535705,62596.0,62595.0,0.023]
[1728228359148,0.174905,62596.0,62595.0,0.023]
[1728228359353,0.535705,62596.0,62595.0,0.023]
[1728228360954,0.535705,62596.0,62590.0,0.00239615]
[1728228361176,0.17391,62591.0,62590.0,0.00239615]
[1728228362660,0.17391,62591.0,62590.0,0.01639615]
[1728228363251,0.17391,62591.0,62590.0,0.02339615]
[1728228364169,0.17491,62591.0,62590.0,0.02339615]
[1728228364553,0.111,62591.0,62583.0,0.0111]
[1728228364758,0.06392,62582.0,62577.0,0.075023]
[1728228364964,0.11,62578.0,62577.0,0.063923]
[1728228366058,0.111,62578.0,62577.0,0.071923]
[1728228366960,0.112,62578.0,62577.0,0.071923]
[1728228367164,0.4728,62578.0,62577.0,0.008]
[1728228367671,0.4718,62578.0,62573.0,0.126028]
[1728228367970,0.11,62574.0,62573.0,0.126028]
[1728228368364,0.11,62574.0,62567.0,0.06362169]